[Event "IV Elllobregat Open Chess Tmnt"]
[Site "Sant Boi de Llobregat, Spain"]
[Date "2023.11.30"]
[Round "1.31"]
[White "Bogdanov, Artyom"]
[Black "Bharath, Subramaniyam H"]
[Result "0-1"]
[TimeControl "90min/40moves + 15min/end + 30sec from move 1"]
[WhiteFideId "13749200"]
[BlackFideId "46634827"]
[WhiteElo "2300"]
[BlackElo "2504"]

1. e4 {[%emt 00:00:02]} e5 {[%emt 00:00:13]} 2. Nf3 {[%emt 00:00:05]} Nc6
{[%emt 00:00:07]} 3. Bb5 {[%emt 00:00:07]} a6 {[%emt 00:00:08]} 4. Ba4 {[%emt
00:00:03]} Nf6 {[%emt 00:00:08]} 5. O-O {[%emt 00:00:06]} d6 {[%emt 00:00:05]}
6. Re1 {[%emt 00:00:24]} Bd7 {[%emt 00:00:09]} 7. c3 {[%emt 00:00:14]} g6
{[%emt 00:00:08]} 8. d4 {[%emt 00:00:06]} Bg7 {[%emt 00:00:06]} 9. h3 {[%emt
00:00:17]} O-O {[%emt 00:00:09]} 10. Nbd2 {[%emt 00:00:55]} Re8 {[%emt
00:00:21]} 11. Bc2 {[%emt 00:00:11]} a5 {[%emt 00:00:08]} 12. Nf1 {[%emt
00:03:12]} a4 {[%emt 00:00:08]} 13. Ng3 {[%emt 00:10:21]} b5 {[%emt 00:00:10]}
14. Be3 {[%emt 00:12:30]} Qe7 {[%emt 00:03:31]} 15. Bd3 {[%emt 00:10:49]} Na5
{[%emt 00:21:07]} 16. b4 {[%emt 00:09:12]} axb3 {[%emt 00:15:35]} 17. axb3
{[%emt 00:00:06]} c5 {[%emt 00:01:59]} 18. d5 {[%emt 00:05:37]} Reb8 {[%emt
00:16:26]} 19. Re2 {[%emt 00:08:53]} c4 {[%emt 00:10:27]} 20. Rea2 {[%emt
00:01:51]} Qd8 {[%emt 00:04:19]} 21. b4 {[%emt 00:04:55]} Nb3 {[%emt 00:09:35]}
22. Rxa8 {[%emt 00:00:31]} Rxa8 {[%emt 00:00:02]} 23. Rxa8 {[%emt 00:15:41]}
Qxa8 {[%emt 00:01:01]} 24. Bc2 {[%emt 00:00:06]} Qa3 {[%emt 00:04:51]} 25. Ne2
{[%emt 00:02:29]} Ne8 {[%emt 00:02:41]} 26. Nd2 {[%emt 00:03:11]} Na1 {[%emt
00:04:03]} 27. Bb1 {[%emt 00:00:57]} Bf6 {[%emt 00:03:46]} 28. Qc1 {[%emt
00:01:20]} Qa4 {[%emt 00:00:02]} 29. Qb2 {[%emt 00:05:44]} Qd1+ {[%emt
00:02:30]} 30. Kh2 {[%emt 00:00:33]} Qxe2 {[%emt 00:00:24]} 31. Qxa1 {[%emt
00:00:45]} Bh4 {[%emt 00:00:54]} 32. Kg1 {[%emt 00:01:11]} Bxf2+ {[%emt
00:00:40]} 33. Bxf2 {[%emt 00:00:27]} Qxd2 {[%emt 00:00:01]} 34. Qa7 {[%emt
00:02:21]} Nf6 {[%emt 00:00:48]} 35. Bh4 {[%emt 00:01:05]} g5 {[%emt 00:00:15]}
36. Qf2 {[%emt 00:01:34]} Qd1+ {[%emt 00:00:46]} 37. Qe1 {[%emt 00:00:33]} Qh5
{[%emt 00:00:13]} 38. Bg3 {[%emt 00:00:31]} Qg6 {[%emt 00:00:37]} 39. Qe3
{[%emt 00:00:28]} Nh5 {[%emt 00:00:16]} 40. Bf2 {[%emt 00:00:32]} g4 {[%emt
00:00:31]} 41. h4 {[%emt 00:03:18]} g3 {[%emt 00:04:09]} 42. Be1 {[%emt
00:00:09]} Qg4 {[%emt 00:02:07]} 43. Qg5+ {[%emt 00:07:15]} Qxg5 {[%emt
00:00:30]} 44. hxg5 {[%emt 00:00:05]} Kg7 {[%emt 00:01:49]} 45. Bc2 {[%emt
00:00:26]} Bg4 {[%emt 00:00:20]} 46. Kf1 {[%emt 00:02:31]} Kg6 {[%emt
00:01:42]} 47. Bd2 {[%emt 00:00:19]} Nf4 {[%emt 00:01:14]} 48. Bxf4 {[%emt
00:02:40]} exf4 {[%emt 00:00:08]} 49. e5+ {[%emt 00:00:04]} Kxg5 {[%emt
00:00:08]} 50. exd6 {[%emt 00:00:04]} h5 {[%emt 00:01:31]} 51. Bd1 {[%emt
00:00:38]} Bd7 {[%emt 00:00:16]} 52. Bf3 {[%emt 00:00:33]} h4 {[%emt 00:01:03]}
53. Be4 {[%emt 00:00:05]} Kf6 {[%emt 00:01:36]} 54. Ke2 {[%emt 00:00:33]} Ke5
{[%emt 00:00:24]} 55. Kf3 {[%emt 00:00:45]} f5 {[%emt 00:00:25]} 56. Bc2 {[%emt
00:00:09]} Be8 {[%emt 00:00:08]} 57. Ke2 {[%emt 00:00:57]} Kxd6 {[%emt
00:00:20]} 58. Bxf5 {[%emt 00:00:16]} Bh5+ {[%emt 00:01:42]} 59. Kf1 {[%emt
00:00:06]} Kxd5 {[%emt 00:00:18]} 60. Bd7 {[%emt 00:00:26]} f3 {[%emt
00:00:37]} 61. Kg1 {[%emt 00:04:00]} f2+ {[%emt 00:00:39]} 62. Kf1 {[%emt
00:00:04]} Bg6 {[%emt 00:00:06]} 0-1

[Event "IV Elllobregat Open Chess Tmnt"]
[Site "Sant Boi de Llobregat, Spain"]
[Date "2023.11.30"]
[Round "1.32"]
[White "Ioannidis, Evgenios"]
[Black "Ahmad, Khagan"]
[Result "1-0"]
[TimeControl "90min/40moves + 15min/end + 30sec from move 1"]
[WhiteFideId "4229274"]
[BlackFideId "13431552"]
[WhiteElo "2502"]
[BlackElo "2285"]

1. d4 {[%emt 00:00:04]} Nf6 {[%emt 00:04:11]} 2. c4 {[%emt 00:00:09]} e6 {[%emt
00:00:04]} 3. Nf3 {[%emt 00:00:10]} d5 {[%emt 00:00:04]} 4. Nc3 {[%emt
00:00:16]} Bb4 {[%emt 00:00:05]} 5. e3 {[%emt 00:00:22]} O-O {[%emt 00:00:26]}
6. Bd2 {[%emt 00:00:16]} Nbd7 {[%emt 00:00:26]} 7. Rc1 {[%emt 00:00:29]} a6
{[%emt 00:11:55]} 8. a3 {[%emt 00:02:23]} Bxc3 {[%emt 00:02:40]} 9. Bxc3 {[%emt
00:00:31]} dxc4 {[%emt 00:00:05]} 10. Bxc4 {[%emt 00:01:24]} b5 {[%emt
00:00:03]} 11. Be2 {[%emt 00:00:44]} Bb7 {[%emt 00:13:57]} 12. Ba5 {[%emt
00:00:10]} Rc8 {[%emt 00:00:06]} 13. O-O {[%emt 00:00:57]} Nd5 {[%emt
00:19:48]} 14. a4 {[%emt 00:02:46]} bxa4 {[%emt 00:03:17]} 15. Qxa4 {[%emt
00:01:09]} Qe7 {[%emt 00:00:27]} 16. Qb3 {[%emt 00:11:55]} Rb8 {[%emt
00:01:27]} 17. Qa3 {[%emt 00:00:28]} Qxa3 {[%emt 00:00:42]} 18. bxa3 {[%emt
00:00:03]} Rfc8 {[%emt 00:00:06]} 19. Rb1 {[%emt 00:06:45]} c5 {[%emt
00:09:13]} 20. Rxb7 {[%emt 00:00:49]} Rxb7 {[%emt 00:00:02]} 21. Bxa6 {[%emt
00:00:07]} Ra8 {[%emt 00:00:04]} 22. Bxb7 {[%emt 00:00:06]} Rxa5 {[%emt
00:00:01]} 23. Bxd5 {[%emt 00:01:27]} exd5 {[%emt 00:00:01]} 24. dxc5 {[%emt
00:00:16]} Nxc5 {[%emt 00:00:06]} 25. Ra1 {[%emt 00:00:26]} f6 {[%emt
00:06:02]} 26. Nd4 {[%emt 00:00:24]} Kf7 {[%emt 00:05:15]} 27. Kf1 {[%emt
00:00:05]} Ne6 {[%emt 00:01:31]} 28. Nxe6 {[%emt 00:09:12]} Kxe6 {[%emt
00:00:01]} 29. Ke2 {[%emt 00:00:10]} d4 {[%emt 00:00:41]} 30. exd4 {[%emt
00:00:31]} Kd5 {[%emt 00:00:10]} 31. Kd3 {[%emt 00:00:07]} Ra4 {[%emt
00:00:05]} 32. Kc3 {[%emt 00:00:28]} Rxd4 {[%emt 00:00:45]} 33. a4 {[%emt
00:00:34]} Kc5 {[%emt 00:00:07]} 34. a5 {[%emt 00:01:09]} Rd7 {[%emt 00:00:06]}
35. a6 {[%emt 00:00:25]} Ra7 {[%emt 00:00:08]} 36. Ra5+ {[%emt 00:00:09]} Kb6
{[%emt 00:01:00]} 37. Kb4 {[%emt 00:00:04]} g6 {[%emt 00:00:37]} 38. Rb5+
{[%emt 00:04:07]} Kc6 {[%emt 00:00:37]} 39. Ka5 {[%emt 00:00:06]} Re7 {[%emt
00:00:34]} 40. Rb6+ {[%emt 00:00:08]} Kc5 {[%emt 00:00:06]} 41. Rb8 {[%emt
00:00:32]} Re2 {[%emt 00:00:19]} 42. Rc8 {[%emt 00:00:10]} Kd6 {[%emt
00:00:43]} 43. Rc4 {[%emt 00:01:27]} Kd5 {[%emt 00:04:25]} 44. Kb5 {[%emt
00:00:06]} Ra2 {[%emt 00:04:18]} 45. Rb4 {[%emt 00:00:05]} Kd6 {[%emt
00:01:04]} 46. Kb6 {[%emt 00:00:06]} Rxf2 {[%emt 00:00:09]} 47. a7 {[%emt
00:00:03]} Ra2 {[%emt 00:00:02]} 48. Rb5 {[%emt 00:00:04]} Rxa7 {[%emt
00:01:00]} 49. Kxa7 {[%emt 00:00:05]} Kc6 {[%emt 00:00:03]} 50. Rb6+ {[%emt
00:00:08]} Kd5 {[%emt 00:00:32]} 1-0

[Event "IV Elllobregat Open Chess Tmnt"]
[Site "Sant Boi de Llobregat, Spain"]
[Date "2023.11.30"]
[Round "1.33"]
[White "Horcajuelo Rocamora, Martin"]
[Black "Abdisalimov, Abdimalik"]
[Result "0-1"]
[TimeControl "90min/40moves + 15min/end + 30sec from move 1"]
[WhiteFideId "24573027"]
[BlackFideId "14206323"]
[WhiteElo "2281"]
[BlackElo "2496"]

1. d4 {[%clk 01:30:52]} {[%emt 00:00:07]} Nf6 {[%clk 01:30:47]} {[%emt
00:00:14]} 2. c4 {[%clk 01:31:10]} {[%emt 00:00:12]} e6 {[%clk 01:30:28]}
{[%emt 00:00:49]} 3. Nf3 {[%clk 01:31:16]} {[%emt 00:00:24]} b6 {[%clk
01:30:48]} {[%emt 00:00:11]} 4. g3 {[%clk 01:28:30]} {[%emt 00:03:16]} Ba6
{[%clk 01:31:12]} {[%emt 00:00:06]} 5. b3 {[%clk 01:27:53]} {[%emt 00:01:07]}
d5 {[%clk 01:31:35]} {[%emt 00:00:07]} 6. Bg2 {[%clk 01:25:38]} {[%emt
00:02:44]} Bb4+ {[%clk 01:24:35]} {[%emt 00:07:30]} 7. Bd2 {[%clk 01:23:42]}
{[%emt 00:02:26]} Bd6 {[%clk 01:24:55]} {[%emt 00:00:10]} 8. Bf4 {[%clk
01:10:28]} {[%emt 00:13:44]} Bxf4 {[%clk 01:22:13]} {[%emt 00:03:12]} 9. gxf4
{[%clk 01:10:36]} {[%emt 00:00:22]} O-O {[%clk 01:22:37]} {[%emt 00:00:05]} 10.
Ne5 {[%clk 01:07:08]} {[%emt 00:03:58]} c6 {[%clk 01:12:04]} {[%emt 00:11:03]}
11. e3 {[%clk 01:02:08]} {[%emt 00:05:31]} Ne8 {[%clk 01:05:51]} {[%emt
00:06:43]} 12. Qc2 {[%clk 00:58:51]} {[%emt 00:03:47]} f6 {[%clk 01:02:28]}
{[%emt 00:03:52]} 13. Nd3 {[%clk 00:58:15]} {[%emt 00:01:07]} Nd6 {[%clk
01:02:42]} {[%emt 00:00:16]} 14. Nd2 {[%clk 00:46:36]} {[%emt 00:12:09]} Nd7
{[%emt 00:05:07]} 15. f5 {[%clk 00:41:32]} {[%emt 00:04:21]} exf5 {[%clk
00:51:26]} {[%emt 00:08:22]} 16. Nf4 {[%clk 00:36:46]} {[%emt 00:05:16]} Qe7
{[%clk 00:49:37]} {[%emt 00:02:18]} 17. cxd5 {[%clk 00:29:58]} {[%emt
00:07:18]} c5 {[%clk 00:49:24]} {[%emt 00:00:43]} 18. dxc5 {[%clk 00:28:07]}
{[%emt 00:02:20]} Nxc5 {[%clk 00:48:27]} {[%emt 00:01:27]} 19. b4 {[%clk
00:27:48]} {[%emt 00:00:49]} Nce4 {[%clk 00:43:37]} {[%emt 00:05:19]} 20. Nxe4
{[%clk 00:26:17]} {[%emt 00:02:02]} Nxe4 {[%clk 00:42:45]} {[%emt 00:01:22]} 21.
Qb3 {[%clk 00:21:17]} {[%emt 00:05:30]} Qe5 {[%clk 00:41:12]} {[%emt 00:02:03]}
22. Rd1 {[%clk 00:18:38]} {[%emt 00:03:09]} Rac8 {[%clk 00:41:01]} {[%emt
00:00:42]} 23. b5 {[%clk 00:13:04]} {[%emt 00:06:05]} Rc3 {[%emt 00:02:48]} 24.
Nd3 {[%clk 00:11:51]} {[%emt 00:01:37]} Rxb3 {[%clk 00:30:30]} {[%emt
00:08:48]} 25. Nxe5 {[%clk 00:12:09]} {[%emt 00:00:11]} Rxb5 {[%clk 00:30:44]}
{[%emt 00:00:16]} 26. Nc6 {[%clk 00:08:14]} {[%emt 00:04:25]} Rb2 {[%clk
00:29:38]} {[%emt 00:01:36]} 27. Bxe4 {[%clk 00:08:33]} {[%emt 00:00:11]} Re2+
{[%clk 00:27:41]} {[%emt 00:02:27]} 28. Kf1 {[%clk 00:09:00]} {[%emt 00:00:03]}
Rxe3+ {[%clk 00:28:03]} {[%emt 00:00:08]} 29. Kg2 {[%clk 00:07:10]} {[%emt
00:02:19]} Rxe4 {[%clk 00:28:29]} {[%emt 00:00:04]} 30. Rhe1 {[%clk 00:07:18]}
{[%emt 00:00:22]} Bb7 {[%clk 00:27:25]} {[%emt 00:01:34]} 31. Ne7+ {[%clk
00:07:17]} {[%emt 00:00:31]} Kf7 {[%clk 00:26:21]} {[%emt 00:01:35]} 32. Nxf5
{[%clk 00:07:34]} {[%emt 00:00:12]} Rxe1 {[%clk 00:26:44]} {[%emt 00:00:06]} 33.
Rxe1 {[%clk 00:08:00]} {[%emt 00:00:04]} Bxd5+ {[%emt 00:00:16]} 34. Kg3 {[%clk
00:07:27]} {[%emt 00:00:57]} Be6 {[%clk 00:23:46]} {[%emt 00:03:50]} 35. Nd6+
{[%clk 00:07:53]} {[%emt 00:00:04]} Ke7 {[%clk 00:24:12]} {[%emt 00:00:03]} 36.
Nb5 {[%clk 00:07:41]} {[%emt 00:00:41]} Rd8 {[%clk 00:23:35]} {[%emt 00:00:37]}
37. Re3 {[%clk 00:06:24]} {[%emt 00:01:48]} Rd7 {[%clk 00:23:53]} {[%emt
00:00:42]} 38. a3 {[%clk 00:06:17]} {[%emt 00:00:37]} a6 {[%clk 00:23:12]}
{[%emt 00:01:11]} 39. Nc3 {[%clk 00:06:41]} {[%emt 00:00:06]} Rd6 {[%clk
00:23:25]} {[%emt 00:00:17]} 40. f4 {[%clk 00:21:28]} {[%emt 00:00:43]} Kd7
{[%clk 00:38:35]} {[%emt 00:00:20]} 41. Ne4 {[%clk 00:21:52]} {[%emt 00:00:07]}
Rd4 {[%clk 00:39:00]} {[%emt 00:00:05]} 42. Kf2 {[%clk 00:21:37]} {[%emt
00:00:44]} Bd5 {[%clk 00:39:14]} {[%emt 00:00:17]} 43. Ng3 {[%clk 00:21:50]}
{[%emt 00:00:17]} Rxf4+ {[%clk 00:39:38]} {[%emt 00:00:06]} 44. Ke2 {[%clk
00:22:07]} {[%emt 00:00:12]} g6 {[%clk 00:39:54]} {[%emt 00:00:14]} 45. Kd3
{[%clk 00:20:46]} {[%emt 00:01:51]} Rh4 {[%clk 00:40:13]} {[%emt 00:00:10]} 46.
Kc3 {[%clk 00:20:52]} {[%emt 00:00:24]} Rxh2 {[%clk 00:40:30]} {[%emt
00:00:13]} 47. Ne2 {[%clk 00:21:16]} {[%emt 00:00:06]} Rh4 {[%clk 00:40:47]}
{[%emt 00:00:13]} 48. Nd4 {[%clk 00:21:19]} {[%emt 00:00:28]} h5 {[%clk
00:41:03]} {[%emt 00:00:13]} 0-1

[Event "IV Elllobregat Open Chess Tmnt"]
[Site "Sant Boi de Llobregat, Spain"]
[Date "2023.11.30"]
[Round "1.34"]
[White "Erdogmus, Yagiz Kaan"]
[Black "Salinas Tomas, Daniel"]
[Result "1-0"]
[TimeControl "90min/40moves + 15min/end + 30sec from move 1"]
[WhiteFideId "44599790"]
[BlackFideId "24597716"]
[WhiteElo "2496"]
[BlackElo "2281"]

1. e4 {[%emt 00:02:39]} c6 {[%emt 00:00:21]} 2. d4 {[%emt 00:00:12]} d5 {[%emt
00:00:07]} 3. e5 {[%emt 00:00:27]} c5 {[%emt 00:00:09]} 4. c4 {[%emt 00:03:33]}
Nc6 {[%emt 00:01:57]} 5. Nf3 {[%emt 00:00:34]} cxd4 {[%emt 00:00:31]} 6. Nxd4
{[%emt 00:00:18]} e6 {[%emt 00:00:34]} 7. Nc3 {[%emt 00:00:41]} Bb4 {[%emt
00:00:49]} 8. Nxc6 {[%emt 00:04:44]} bxc6 {[%emt 00:00:09]} 9. Bd2 {[%emt
00:00:50]} Ne7 {[%emt 00:02:45]} 10. cxd5 {[%emt 00:06:43]} Bxc3 {[%emt
00:01:13]} 11. Bxc3 {[%emt 00:00:06]} Nxd5 {[%emt 00:00:14]} 12. Qd2 {[%emt
00:20:53]} c5 {[%emt 00:06:31]} 13. Ba5 {[%emt 00:02:40]} Qe7 {[%emt 00:01:20]}
14. Bd3 {[%emt 00:03:40]} O-O {[%emt 00:02:38]} 15. O-O {[%emt 00:00:42]} Bb7
{[%emt 00:02:02]} 16. Rac1 {[%emt 00:02:03]} Rac8 {[%emt 00:03:08]} 17. b3
{[%emt 00:10:58]} Nb6 {[%emt 00:03:30]} 18. Rfd1 {[%emt 00:11:21]} Rfd8 {[%emt
00:01:34]} 19. Qe3 {[%emt 00:01:08]} Rd4 {[%emt 00:01:29]} 20. Bf1 {[%emt
00:01:48]} Re4 {[%emt 00:11:59]} 21. Qg3 {[%emt 00:00:58]} h5 {[%emt 00:00:48]}
22. f4 {[%emt 00:19:03]} Nd5 {[%emt 00:03:09]} 23. Bd2 {[%emt 00:01:08]} Qd7
{[%emt 00:25:32]} 24. Qf2 {[%emt 00:03:02]} Rd4 {[%emt 00:01:06]} 25. Re1
{[%emt 00:01:35]} Qe7 {[%emt 00:05:17]} 26. Rc4 {[%emt 00:00:34]} Rxc4 {[%emt
00:00:34]} 27. Bxc4 {[%emt 00:00:32]} Nb6 28. Be2 {[%emt 00:00:31]} c4 {[%emt
00:01:24]} 29. Rc1 {[%emt 00:01:11]} Qa3 {[%emt 00:00:41]} 30. bxc4 {[%emt
00:00:25]} Qxa2 {[%emt 00:00:01]} 31. Be3 {[%emt 00:00:02]} Ba6 {[%emt
00:01:02]} 32. Bxh5 {[%emt 00:01:04]} Qa3 {[%emt 00:03:47]} 33. f5 {[%emt
00:00:29]} Nxc4 {[%emt 00:02:00]} 34. Bf4 {[%emt 00:00:35]} exf5 {[%emt
00:01:14]} 35. Qxa7 {[%emt 00:00:29]} Qc5+ {[%emt 00:00:52]} 36. Qxc5 {[%emt
00:00:02]} Rxc5 {[%emt 00:00:01]} 37. Be2 {[%emt 00:00:45]} Rc6 {[%emt
00:01:56]} 38. Bd3 {[%emt 00:00:35]} g6 {[%emt 00:00:26]} 39. Ra1 {[%emt
00:00:27]} Bc8 {[%emt 00:02:29]} 40. Ra8 {[%emt 00:00:45]} Kg7 {[%emt
00:02:09]} 41. Rb8 {[%emt 00:03:56]} Rc5 {[%emt 00:02:30]} 42. Bxc4 {[%emt
00:01:36]} Rxc4 {[%emt 00:00:09]} 43. Bg5 {[%emt 00:00:02]} Kf8 {[%emt
00:00:39]} 44. Rb3 {[%emt 00:01:40]} Be6 {[%emt 00:01:01]} 45. Rd3 {[%emt
00:00:36]} Rc8 {[%emt 00:00:06]} 46. Kf2 {[%emt 00:00:15]} Rb8 {[%emt
00:00:31]} 47. Ke1 {[%emt 00:01:11]} Ra8 {[%emt 00:01:02]} 48. Kd2 {[%emt
00:00:55]} Ke8 {[%emt 00:00:25]} 49. Ke3 {[%emt 00:01:35]} Rc8 {[%emt
00:01:26]} 50. Bf6 {[%emt 00:00:42]} Bc4 {[%emt 00:00:48]} 51. Rd2 {[%emt
00:00:54]} Be6 {[%emt 00:01:34]} 52. Kf4 {[%emt 00:00:42]} Bc4 {[%emt
00:00:18]} 53. Kg5 {[%emt 00:00:32]} Be6 {[%emt 00:00:19]} 54. Kh6 {[%emt
00:00:50]} Bc4 {[%emt 00:00:51]} 55. Kg7 {[%emt 00:00:38]} Be6 {[%emt
00:00:58]} 56. h4 {[%emt 00:00:40]} Bc4 {[%emt 00:00:26]} 57. g3 {[%emt
00:00:50]} Bb3 {[%emt 00:00:33]} 58. Rb2 {[%emt 00:00:55]} Bd5 {[%emt
00:00:18]} 59. Rb5 {[%emt 00:02:29]} Bc6 {[%emt 00:00:36]} 60. Rb6 {[%emt
00:01:38]} Bd5 {[%emt 00:00:38]} 61. Rb5 {[%emt 00:01:23]} Bc6 {[%emt
00:01:28]} 62. Rc5 {[%emt 00:01:11]} Bb7 {[%emt 00:01:06]} 63. Ra5 {[%emt
00:01:28]} Ra8 {[%emt 00:00:13]} 64. e6 {[%emt 00:00:45]} fxe6 {[%emt
00:00:20]} 65. Rb5 {[%emt 00:00:25]} Be4 {[%emt 00:00:48]} 66. Rb4 {[%emt
00:00:36]} Kd7 {[%emt 00:02:46]} 67. Kxg6 {[%emt 00:00:19]} Rg8+ {[%emt
00:04:12]} 68. Bg7 {[%emt 00:00:27]} Bf3 {[%emt 00:00:15]} 69. Rd4+ {[%emt
00:00:19]} Kc6 {[%emt 00:00:20]} 70. Kf7 {[%emt 00:00:27]} Ra8 {[%emt
00:01:40]} 71. Kxe6 {[%emt 00:00:17]} Rg8 {[%emt 00:00:17]} 72. Kf7 {[%emt
00:00:36]} Ra8 {[%emt 00:00:12]} 73. Kg6 {[%emt 00:00:24]} Rg8 {[%emt
00:00:29]} 74. Rf4 {[%emt 00:00:09]} Bg4 {[%emt 00:00:41]} 75. Rxg4 {[%emt
00:00:32]} fxg4 {[%emt 00:00:04]} 76. h5 {[%emt 00:00:02]} Kd5 {[%emt
00:00:04]} 77. h6 {[%emt 00:00:07]} Ke4 {[%emt 00:00:09]} 78. h7 {[%emt
00:00:07]} Ra8 {[%emt 00:00:06]} 79. h8=Q {[%emt 00:00:13]} Rxh8 {[%emt
00:00:05]} 80. Bxh8 {[%emt 00:00:04]} Kf3 {[%emt 00:00:06]} 81. Be5 {[%emt
00:00:04]} 1-0

[Event "IV Elllobregat Open Chess Tmnt"]
[Site "Sant Boi de Llobregat, Spain"]
[Date "2023.11.30"]
[Round "1.35"]
[White "Karamsetty, Jeevan"]
[Black "Raja, Rithvik R"]
[Result "0-1"]
[TimeControl "90min/40moves + 15min/end + 30sec from move 1"]
[WhiteFideId "2025337"]
[BlackFideId "35007394"]
[WhiteElo "2280"]
[BlackElo "2495"]

1. e4 {[%clk 01:30:56]} {[%emt 00:00:03]} c5 {[%clk 01:30:47]} {[%emt
00:00:13]} 2. Nc3 {[%clk 01:31:20]} {[%emt 00:00:06]} d6 {[%clk 01:31:02]}
{[%emt 00:00:16]} 3. Nf3 {[%clk 01:31:43]} {[%emt 00:00:06]} Nf6 {[%clk
01:31:01]} {[%emt 00:00:30]} 4. e5 {[%clk 01:32:02]} {[%emt 00:00:11]} dxe5
{[%clk 01:30:34]} {[%emt 00:00:58]} 5. Nxe5 {[%clk 01:32:25]} {[%emt 00:00:07]}
a6 {[%clk 01:29:54]} {[%emt 00:01:11]} 6. g3 {[%clk 01:31:14]} {[%emt
00:01:40]} Qd6 {[%clk 01:29:57]} {[%emt 00:00:27]} 7. Nf3 {[%clk 01:31:16]}
{[%emt 00:00:27]} b5 {[%clk 01:30:14]} {[%emt 00:00:13]} 8. Bg2 {[%clk
01:31:31]} {[%emt 00:00:15]} Bb7 {[%clk 01:30:38]} {[%emt 00:00:07]} 9. O-O
{[%clk 01:31:43]} {[%emt 00:00:17]} e6 {[%clk 01:30:55]} {[%emt 00:00:13]} 10.
d3 {[%clk 01:31:58]} {[%emt 00:00:15]} Be7 {[%clk 01:31:11]} {[%emt 00:00:14]}
11. a4 {[%clk 01:32:00]} {[%emt 00:00:28]} b4 {[%clk 01:31:34]} {[%emt
00:00:07]} 12. Nb1 {[%clk 01:32:16]} {[%emt 00:00:13]} O-O {[%clk 01:31:51]}
{[%emt 00:00:13]} 13. Nbd2 {[%clk 01:32:07]} {[%emt 00:00:39]} Nd5 {[%clk
01:32:15]} {[%emt 00:00:07]} 14. Nc4 {[%clk 01:32:13]} {[%emt 00:00:23]} Qc7
{[%clk 01:32:39]} {[%emt 00:00:06]} 15. Nfd2 {[%clk 01:31:30]} {[%emt
00:01:13]} Nc6 {[%clk 01:31:19]} {[%emt 00:01:50]} 16. Nb3 {[%clk 01:31:29]}
{[%emt 00:00:30]} Rad8 {[%clk 01:27:54]} {[%emt 00:03:55]} 17. Qe2 {[%clk
01:26:43]} {[%emt 00:05:16]} Rfe8 {[%clk 01:26:26]} {[%emt 00:01:58]} 18. Re1
{[%clk 01:24:25]} {[%emt 00:02:47]} Bf8 {[%clk 01:24:46]} {[%emt 00:02:11]} 19.
h4 {[%clk 01:15:41]} {[%emt 00:09:13]} e5 {[%clk 01:15:59]} {[%emt 00:09:17]}
20. Bd2 {[%clk 01:06:48]} {[%emt 00:09:23]} Nb6 {[%clk 01:06:33]} {[%emt
00:09:56]} 21. Nxb6 {[%clk 00:55:46]} {[%emt 00:11:32]} Qxb6 {[%clk 01:05:34]}
{[%emt 00:01:30]} 22. Be4 {[%clk 00:48:44]} {[%emt 00:07:30]} Nd4 {[%clk
00:55:12]} {[%emt 00:10:52]} 23. Nxd4 {[%clk 00:48:00]} {[%emt 00:01:15]} cxd4
{[%clk 00:55:13]} {[%emt 00:00:28]} 24. c4 {[%clk 00:34:10]} {[%emt 00:14:19]}
bxc3 {[%clk 00:43:06]} {[%emt 00:12:38]} 25. bxc3 {[%clk 00:34:19]} {[%emt
00:00:22]} Bxe4 {[%clk 00:43:30]} {[%emt 00:00:06]} 26. Qxe4 {[%clk 00:33:10]}
{[%emt 00:01:39]} Qb2 {[%clk 00:40:08]} {[%emt 00:03:53]} 27. Bg5 {[%clk
00:30:14]} {[%emt 00:03:25]} f6 {[%clk 00:39:13]} {[%emt 00:01:25]} 28. Rab1
{[%clk 00:29:41]} {[%emt 00:01:03]} Qxc3 {[%clk 00:26:16]} {[%emt 00:13:28]} 29.
Rec1 {[%clk 00:26:12]} {[%emt 00:03:59]} Qa5 {[%clk 00:26:40]} {[%emt
00:00:06]} 30. Bxf6 {[%clk 00:22:38]} {[%emt 00:04:03]} gxf6 {[%clk 00:27:05]}
{[%emt 00:00:05]} 31. Qg4+ {[%clk 00:14:40]} {[%emt 00:08:28]} Kh8 {[%clk
00:27:14]} {[%emt 00:00:22]} 32. Qf5 {[%clk 00:11:42]} {[%emt 00:03:28]} Rb8
{[%clk 00:21:56]} {[%emt 00:05:48]} 33. Rxb8 {[%clk 00:05:23]} {[%emt
00:06:49]} Rxb8 {[%clk 00:22:24]} {[%emt 00:00:02]} 34. Qxf6+ {[%clk 00:04:31]}
{[%emt 00:01:21]} Bg7 {[%clk 00:22:43]} {[%emt 00:00:11]} 35. Qf5 {[%clk
00:02:53]} {[%emt 00:02:08]} Rf8 {[%clk 00:18:34]} {[%emt 00:04:39]} 36. Rc8
{[%clk 00:03:09]} {[%emt 00:00:14]} Qc5 {[%clk 00:17:09]} {[%emt 00:01:55]} 37.
Qxh7+ {[%clk 00:01:52]} {[%emt 00:01:47]} Kxh7 {[%clk 00:17:35]} {[%emt
00:00:05]} 38. Rxc5 {[%clk 00:02:19]} {[%emt 00:00:03]} Rf3 {[%clk 00:18:01]}
{[%emt 00:00:04]} 39. Ra5 {[%clk 00:01:59]} {[%emt 00:00:50]} Rxd3 {[%clk
00:17:49]} {[%emt 00:00:42]} 40. Rxa6 {[%clk 00:17:04]} {[%emt 00:00:25]} e4
{[%clk 00:32:00]} {[%emt 00:01:19]} 41. Kf1 {[%clk 00:16:37]} {[%emt 00:00:57]}
Ra3 {[%clk 00:32:00]} {[%emt 00:00:31]} 42. Re6 {[%clk 00:10:27]} {[%emt
00:06:40]} Ra1+ {[%clk 00:31:53]} {[%emt 00:00:37]} 43. Ke2 {[%clk 00:10:31]}
{[%emt 00:00:26]} d3+ {[%clk 00:32:02]} {[%emt 00:00:21]} 44. Kd2 {[%clk
00:09:43]} {[%emt 00:01:18]} Bh6+ {[%clk 00:31:55]} {[%emt 00:00:37]} 0-1